[Event "Baku Open 2024"]
[Site "Baku"]
[Date "2024.07.07"]
[Round "9.1"]
[White "Puranik, Abhimanyu"]
[Black "Aditya Mittal"]
[Result "1/2-1/2"]
[ECO "B56"]
[WhiteElo "2632"]
[BlackElo "2595"]
[Annotator "TA"]
[PlyCount "39"]
[EventDate "2024.06.29"]
[EventType "swiss"]
[EventCountry "AZE"]
[SourceTitle "playchess.com"]
[Source "ChessBase"]
[SourceQuality "1"]
[TimeControl "5400+30"]

{[%evp 14,39,51,58,54,46,34,43,46,37,39,33,35,23,50,15,18,20,12,14,15,17,11,5,8,0,13,0]} 1. e4 {[%emt 0:00:04]} c5 {[%emt 0:00:01]} 2. Nf3 {[%emt 0:00:19][%cal Bg1f3,Bf3d4,Bd4f5][%mdl 32]} d6 {[%emt 0:00:01]} 3. d4 {[%emt 0:00:06]} cxd4 {[%emt 0:00:01]} 4. Nxd4 {[%emt 0:00:05]} Nf6 {[%emt 0:00:01]} 5. Nc3 {[%emt 0:00:06]} e5 {[%emt 0:00:03]} 6. Bb5+ {[%emt 0:00:46][%cal Bf1b5,Bb5a4,Ba4b3][%mdl 32]} Nbd7 {[%emt 0:00:02]} 7. Nf5 {[%emt 0:04:13]} a6 {[%emt 0:00:04]} 8. Ba4 {[%emt 0:07:07]} (8. Nxd6+ $2 {loses.} Bxd6 9. Qxd6 axb5 $19) 8... b5 {[%emt 0:00:01]} 9. Bb3 {[%emt 0:00:05]} Nc5 {[%emt 0:00:02][%cal Oc8b7]} 10. Bg5 {[%emt 0:07:10]} Bxf5 {[%emt 0:00:04] White is slightly better.} 11. exf5 {[%emt 0:02:05]} Be7 {[%emt 0:00:06][%cal Bf8e7,Be7f6,Bf6b2][%mdl 32]} 12. Bxf6 {[%emt 0:07:18]} Bxf6 {[%emt 0:00:02]} 13. O-O {[%emt 0:00:38][%cal Bh1f1,Bf1e1,Be1e4][%mdl 32]} O-O {[%emt 0:00:02]} 14. Re1 {[%emt 0:05:00]} e4 {[%emt 0:04:02] The position is equal.} 15. Nxe4 {[%emt 0:00:30]} Nxe4 {[%emt 0:00:05]} 16. Rxe4 {[%emt 0:00:03]} Bxb2 {[%emt 0:00:05] Black is weak on the light squares} 17. Rb1 {[%emt 0:00:10]} Qf6 {[%emt 0:00:38]} 18. Qh5 {[%emt 0:16:31]} Bc3 {[%emt 0:12:34]} 19. g3 {[%emt 0:05:36]} Rae8 {[%emt 0:03:33]} 20. Rxe8 {[%emt 0:06:33] Weighted Error Value: White=0.08 (flawless) /Black=0.04 (flawless) .  Inaccurate:     	White=1     	Black=1      OK:         	White=4     	Black=6} (20. Rh4 $5 h6 $8 21. Qg6 $14) 1/2-1/2

[Event "Baku Open 2024"]
[Site "Baku"]
[Date "2024.07.07"]
[Round "9.2"]
[White "Assaubayeva, Bibisara"]
[Black "Movahed, Sina"]
[Result "1/2-1/2"]
[ECO "D31"]
[WhiteElo "2472"]
[BlackElo "2482"]
[Annotator "TA"]
[PlyCount "48"]
[EventDate "2024.06.29"]
[EventType "swiss"]
[EventCountry "AZE"]
[SourceTitle "playchess.com"]
[Source "ChessBase"]
[SourceQuality "1"]
[TimeControl "5400+30"]

{[%evp 11,48,2,8,5,22,27,24,31,34,37,53,49,47,31,50,1,12,19,16,-10,0,-4,-5,-66,-45,-42,-31,-38,-19,-8,-12,-15,-19,-16,-14,-10,-2,-1,0]} 1. c4 {[%emt 0:00:05]} e6 {[%emt 0:00:11]} 2. Nc3 {[%emt 0:00:10]} d5 {[%emt 0:00:04]} 3. d4 {[%emt 0:00:12]} c6 {[%emt 0:00:43]} 4. e4 {[%emt 0:00:39]} dxe4 {[%emt 0:01:05]} 5. Nxe4 {[%emt 0:00:07]} Bb4+ {[%emt 0:00:04]} 6. Nc3 {[%emt 0:02:14]} Nf6 {[%emt 0:02:23]} 7. Nf3 {[%emt 0:01:05]} O-O {[%emt 0:01:27][%cal Oe6e5]} 8. a3 {[%emt 0:06:49]} Bxc3+ {[%emt 0:04:08]} 9. bxc3 {[%emt 0:00:18] White has an edge.} Qa5 {[%emt 0:00:55]} 10. Be2 {[%emt 0:07:17]} Nbd7 {[%emt 0:01:26][%cal Oe6e5]} 11. O-O {[%emt 0:02:11]} e5 {[%emt 0:00:20]} 12. Qc2 {[%emt 0:03:48] Inhibits Ne4.} Re8 {[%emt 0:04:31]} 13. c5 {[%emt 0:09:29]} (13. a4 $14) 13... b6 $11 {[%emt 0:11:04]} 14. cxb6 {[%emt 0:09:27]} axb6 {[%emt 0:00:31]} 15. Bb2 {[%emt 0:03:15]} e4 {[%emt 0:08:42]} 16. Nd2 {[%emt 0:00:37]} Qg5 {[%emt 0:00:17]} 17. Nc4 {[%emt 0:05:54]} (17. f3 $11) 17... Ba6 {[%emt 0:00:56]} 18. Bc1 {[%emt 0:08:56]} Qg6 {[%emt 0:01:09][%cal Oe4e3]} 19. Ne3 {[%emt 0:06:10]} Bd3 {[%emt 0:03:22]} 20. Bxd3 {[%emt 0:05:35] The position is equal.} exd3 {[%emt 0:00:14]} 21. Qb1 {[%emt 0:00:25]} Nd5 {[%emt 0:08:24]} 22. Nxd5 {[%emt 0:02:18]} cxd5 {[%emt 0:00:07] White is weak on the light squares} 23. Be3 {[%emt 0:04:01]} ({Much weaker is} 23. Rd1 Rac8 24. Be3 Rxc3 $17) 23... Rec8 {[%emt 0:01:20]} 24. Bd2 {[%emt 0:02:39]} Nf6 {[%emt 0:09:18] Weighted Error Value: White=0.10 (very precise) /Black=0.06 (flawless) .  Mistake:       	White=2     	---        Inaccurate:     	White=1     	---        OK:         	White=11    	Black=7} 1/2-1/2

[Event "Baku Open 2024"]
[Site "Baku"]
[Date "2024.07.07"]
[Round "9.3"]
[White "Mamedov, Rauf"]
[Black "Narayanan S L"]
[Result "1/2-1/2"]
[ECO "C67"]
[WhiteElo "2651"]
[BlackElo "2668"]
[Annotator "TA"]
[PlyCount "23"]
[EventDate "2024.06.29"]
[EventType "swiss"]
[EventCountry "AZE"]
[SourceTitle "playchess.com"]
[Source "ChessBase"]
[SourceQuality "1"]
[TimeControl "5400+30"]

{[%evp 18,23,8,0,0,0,0,0]} 1. e4 {[%emt 0:00:03]} e5 {[%emt 0:00:03]} 2. Nf3 {[%emt 0:00:01]} Nc6 {[%emt 0:00:05]} 3. Bb5 {[%emt 0:00:03]} Nf6 {[%emt 0:00:06]} 4. O-O {[%emt 0:00:03]} Nxe4 {[%emt 0:00:06]} 5. d4 {[%emt 0:00:04][%cal Bd2d4,Bd4e5][%mdl 32]} Nd6 {[%emt 0:00:06]} 6. dxe5 {[%emt 0:00:02]} Nxb5 {[%emt 0:00:05]} 7. a4 {[%emt 0:00:02]} Nbd4 {[%emt 0:00:06]} 8. Nxd4 {[%emt 0:00:03]} Nxd4 {[%emt 0:00:05]} 9. Qxd4 {[%emt 0:00:03]} d5 {[%emt 0:00:06]} 10. exd6 {[%emt 0:00:01] The position is equal.} Qxd6 {[%emt 0:00:06]} 11. Qe4+ {[%emt 0:00:01]} Qe6 {[%emt 0:00:07]} 12. Qd4 {[%emt 0:00:03] Not much happened in this game.   OK:         	White=2     	Black=1} 1/2-1/2

[Event "Baku Open 2024"]
[Site "Baku"]
[Date "2024.07.07"]
[Round "9.4"]
[White "Manafov, Vugar"]
[Black "Suleymanli, Aydin"]
[Result "1/2-1/2"]
[ECO "D35"]
[WhiteElo "2430"]
[BlackElo "2626"]
[Annotator "TA"]
[PlyCount "91"]
[EventDate "2024.06.29"]
[EventType "swiss"]
[EventCountry "AZE"]
[SourceTitle "playchess.com"]
[Source "ChessBase"]
[SourceQuality "1"]
[TimeControl "5400+30"]

{[%evp 10,91,16,11,10,4,7,0,-4,-4,-4,0,0,-3,0,-47,-53,-42,-47,-37,-40,-41,-35,-47,-39,-54,-39,-45,-44,-50,-41,-68,-31,-33,-41,-32,-54,-46,-33,-44,-52,-66,0,0,0,-81,-68,-77,-69,-61,-20,-31,-26,-26,-24,-20,0,0,0,0,0,0,0,0,0,0,0,0,0,-8,0,0,0,0,0,0,0,0,0,0,0,0,0,0]} 1. d4 {[%emt 0:00:05]} Nf6 {[%emt 0:00:05]} 2. Nf3 {[%emt 0:00:09]} d5 {[%emt 0:00:06]} 3. c4 {[%emt 0:00:18]} e6 {[%emt 0:00:05]} 4. Nc3 {[%emt 0:00:10]} Nbd7 {[%emt 0:00:05]} 5. cxd5 {[%emt 0:00:32]} exd5 {[%emt 0:00:06]} 6. Bf4 {[%emt 0:00:13]} Nb6 {[%emt 0:00:19]} 7. e3 {[%emt 0:00:52]} Bf5 {[%emt 0:00:06] Prevents Qc2.} 8. Bd3 {[%emt 0:00:39]} Bxd3 {[%emt 0:01:13]} 9. Qxd3 {[%emt 0:00:08]} c6 {[%emt 0:00:34]} 10. O-O {[%emt 0:00:56]} Be7 {[%emt 0:00:21]} 11. h3 {[%emt 0:03:10]} O-O {[%emt 0:00:06]} 12. e4 {[%emt 0:05:52]} (12. Nd2 $11 {is more appropriate.}) 12... dxe4 {[%emt 0:00:17]} 13. Nxe4 {[%emt 0:00:04]} Nxe4 {[%emt 0:01:07]} 14. Qxe4 {[%emt 0:02:44]} Re8 {[%emt 0:00:42]} 15. Qc2 {[%emt 0:03:17]} Nd5 {[%emt 0:02:21]} 16. Be5 {[%emt 0:01:43]} Qd7 {[%emt 0:00:51]} 17. a3 {[%emt 0:05:38]} f6 {[%emt 0:03:03]} 18. Bh2 {[%emt 0:01:19]} Bd8 {[%emt 0:00:25]} 19. Rfe1 {[%emt 0:03:14]} Bb6 {[%emt 0:00:31]} 20. Kf1 {[%emt 0:01:40]} g5 {[%emt 0:19:57]} 21. Qd3 {[%emt 0:12:04]} Ne7 {[%emt 0:11:52]} (21... Kg7 {with more complications.} 22. h4 h6 23. h5 Qf7) 22. Re4 {[%emt 0:02:22]} Nf5 {[%emt 0:02:11]} 23. Rae1 {[%emt 0:00:24]} Rxe4 {[%emt 0:02:43]} 24. Rxe4 {[%emt 0:00:37]} Rd8 {[%emt 0:02:14][%cal Og8f8]} 25. h4 {[%emt 0:03:05]} Nxd4 {[%emt 0:08:19]} ({Inferior is} 25... Bxd4 26. g4 $16 (26. hxg5 Bxb2 27. Qb3+ Qd5 $14)) (25... Nxh4 $15 26. Nxh4 gxh4) 26. Nxd4 $11 {[%emt 0:04:58]} Bxd4 {[%emt 0:01:16]} 27. hxg5 {[%emt 0:01:47]} (27. Bc7 $1 $11 {keeps the balance.} Qxc7 28. Rxd4 Rxd4 29. Qxd4) 27... Bxb2 $17 {[%emt 0:04:40]} ({Of course not} 27... fxg5 28. Bc7 Qxc7 29. Rxd4 Rxd4 30. Qxd4 $11) 28. Qb3+ {[%emt 0:01:09]} Qd5 {[%emt 0:00:12]} 29. Rb4 {[%emt 0:00:29] Strongly threatening Qxd5+.} Bxa3 {[%emt 0:04:39]} 30. Rxb7 {[%emt 0:04:22] [#]} fxg5 $1 {[%emt 0:01:22][%cal Oa7a5] ...a5! is the strong threat.} 31. Qxd5+ {[%emt 0:00:54]} Rxd5 {[%emt 0:02:17]} (31... cxd5 {simplifies} 32. Rxa7 Bf8 33. Rb7 h5) 32. Rxa7 {[%emt 0:00:13]} Bd6 {[%emt 0:06:26] The position is equal.} 33. Bxd6 {[%emt 0:02:09]} Rxd6 $11 {[%emt 0:00:07][%mdl 4096] Endgame. KR-KR} 34. Ke2 {[%emt 0:00:36]} h6 {[%emt 0:00:23]} 35. Rc7 {[%emt 0:03:36]} Kf8 {[%emt 0:00:17]} 36. Ke3 {[%emt 0:01:45]} Re6+ {[%emt 0:12:08]} 37. Kd4 {[%emt 0:03:59]} g4 {[%emt 0:00:15]} 38. Kc5 {[%emt 0:00:36]} Re2 {[%emt 0:02:51]} 39. Rxc6 {[%emt 0:02:29]} Rxf2 {[%emt 0:03:05] [#] ...Rc2+ would now be deadly.} 40. Rxh6 {[%emt 0:01:07]} Kg7 {[%emt 0:00:31]} 41. Rh4 {[%emt 0:01:25]} Rxg2 {[%emt 0:00:20]} 42. Kd4 {[%emt 0:00:18]} Kg6 {[%emt 0:01:07]} (42... Kf6 $5 43. Ke3 $8 Kg5 $11) 43. Ke3 {[%emt 0:00:14]} Kg5 {[%emt 0:00:11]} 44. Rh8 {[%emt 0:00:08]} Ra2 {[%emt 0:00:06]} 45. Rh7 {[%emt 0:00:16]} Rb2 {[%emt 0:00:53]} (45... g3 $5 46. Kf3 $8 Ra8 $11) 46. Rh8 {[%emt 0:00:12] Weighted Error Value: White=0.09 (flawless) /Black=0.07 (flawless) .  Mistake:       	White=2     	Black=1      Inaccurate:     	White=1     	Black=2      OK:         	White=13    	Black=12     Best:        	White=3     	Black=3} 1/2-1/2

[Event "Baku Open 2024"]
[Site "Baku"]
[Date "2024.07.07"]
[Round "9.5"]
[White "Abasov, Nijat"]
[Black "Ahmadzada, Ahmad"]
[Result "1/2-1/2"]
[ECO "A17"]
[WhiteElo "2621"]
[BlackElo "2481"]
[Annotator "TA"]
[PlyCount "43"]
[EventDate "2024.06.29"]
[EventType "swiss"]
[EventCountry "AZE"]
[SourceTitle "playchess.com"]
[Source "ChessBase"]
[SourceQuality "1"]
[TimeControl "5400+30"]

{[%evp 9,43,6,22,21,23,0,19,5,15,22,20,0,15,0,7,13,15,7,30,7,12,0,21,-50,0,0,16,0,0,0,0,0,0,0,0,0]} 1. Nf3 {[%emt 0:04:48]} Nf6 {[%emt 0:00:31]} 2. c4 {[%emt 0:00:21]} e6 {[%emt 0:00:41]} 3. Nc3 {[%emt 0:00:30]} d5 {[%emt 0:00:22]} 4. e3 {[%emt 0:00:20]} Nbd7 {[%emt 0:05:10]} 5. b3 {[%emt 0:02:20]} Be7 {[%emt 0:02:29]} 6. Bb2 {[%emt 0:00:46]} O-O {[%emt 0:02:10]} 7. Qc2 {[%emt 0:00:22]} c5 {[%emt 0:04:29]} 8. cxd5 {[%emt 0:01:18]} exd5 {[%emt 0:00:41]} 9. d4 {[%emt 0:00:23]} b6 {[%emt 0:01:33]} 10. Be2 {[%emt 0:02:59]} Bb7 {[%emt 0:00:19]} 11. O-O {[%emt 0:02:42]} Rc8 {[%emt 0:01:02]} 12. dxc5 {[%emt 0:00:44]} bxc5 {[%emt 0:00:37]} 13. Rfd1 {[%emt 0:00:10]} Bd6 {[%emt 0:11:44]} 14. Qf5 {[%emt 0:15:37]} (14. Ng5 $5 h6 15. Nge4 $11) 14... Qe7 {[%emt 0:05:19]} 15. Rd2 {[%emt 0:01:47]} Qe6 {[%emt 0:05:52]} 16. Qg5 {[%emt 0:05:48]} ({White should try} 16. Qxe6 $11 fxe6 17. Ba3) 16... Be7 {[%emt 0:08:28]} ({Better is} 16... h6 $15 17. Qh4 Rfd8) 17. Qf4 $11 {[%emt 0:03:58] The position is equal.} h6 {[%emt 0:08:16]} 18. Rad1 {[%emt 0:02:19]} Bd6 {[%emt 0:05:29]} 19. Qh4 {[%emt 0:01:58][%cal Oc3d5]} Be7 {[%emt 0:03:46] White must now prevent ...Ne4.} 20. Qf4 {[%emt 0:07:58]} Bd6 {[%emt 0:00:09]} (20... Nh5 $5 21. Qa4 $8 a6 $11) 21. Qh4 {[%emt 0:01:13][%cal Oc3d5]} Be7 {[%emt 0:00:11] aiming for ...Ne4.} 22. Qf4 {[%emt 0:00:39] Not much happened in this game.   Weighted Error Value: White=0.13 (very precise) /Black=0.12 (very precise) .  Mistake:       	White=1     	Black=1      OK:         	White=8     	Black=5} 1/2-1/2

[Event "Baku Open 2024"]
[Site "Baku"]
[Date "2024.07.07"]
[Round "9.6"]
[White "Muradli, Mahammad"]
[Black "Shuvalova, Polina"]
[Result "0-1"]
[ECO "D35"]
[WhiteElo "2575"]
[BlackElo "2467"]
[Annotator "TA"]
[PlyCount "120"]
[EventDate "2024.06.29"]
[EventType "swiss"]
[EventCountry "AZE"]
[SourceTitle "playchess.com"]
[Source "ChessBase"]
[SourceQuality "1"]
[TimeControl "5400+30"]

{[%evp 12,120,0,-3,0,-16,-12,-8,-16,-18,-9,-13,-12,-5,0,0,0,-6,0,0,0,0,24,-7,-15,-10,-7,-12,24,-27,25,0,0,0,46,-19,-19,-52,-61,-64,7,0,0,-207,-208,-212,-209,-220,-206,-221,-197,-204,-152,-154,-151,-158,-158,-152,-150,-141,-141,-148,-150,-182,-165,-190,-144,-112,-147,-131,0,0,272,280,265,22,12,0,0,0,0,0,0,-850,-784,-1870,-1467,-1575,-1550,-5106,0,-6015,-2088,-29972,-29972,-6091,-5785,-4133,-2602,-1452,-1121,-952,-1118,-1075,-1075,-849,-856,-808,-790,-683,-695]} 1. d4 {[%emt 0:04:30]} Nf6 {[%emt 0:00:08]} 2. c4 {[%emt 0:00:06]} e6 {[%emt 0:00:05]} 3. Nf3 {[%emt 0:00:06]} d5 {[%emt 0:00:05]} 4. Nc3 {[%emt 0:00:16]} Be7 {[%emt 0:00:05]} 5. cxd5 {[%emt 0:00:28]} exd5 {[%emt 0:00:12]} 6. Bf4 {[%emt 0:00:04]} c6 {[%emt 0:00:14]} 7. e3 {[%emt 0:00:19]} Nh5 {[%emt 0:00:07]} 8. h3 {[%emt 0:00:11]} Nxf4 {[%emt 0:00:06]} 9. exf4 {[%emt 0:00:04]} Bd6 {[%emt 0:01:46] The position is equal.} 10. g3 {[%emt 0:00:09]} O-O {[%emt 0:01:33]} 11. Bd3 {[%emt 0:03:20]} Nd7 {[%emt 0:01:28][%cal Bb8d7,Bd7f6,Bf6h5][%mdl 32]} 12. Kf1 {[%emt 0:00:06]} Nf6 {[%emt 0:01:58]} 13. Kg2 {[%emt 0:09:08]} g6 {[%emt 0:00:17]} 14. Qd2 {[%emt 0:11:09]} Nh5 {[%emt 0:06:56]} 15. Rae1 {[%emt 0:04:18]} Qf6 {[%emt 0:05:28]} 16. Ne5 {[%emt 0:03:51]} Be6 {[%emt 0:05:11]} 17. Ne2 {[%emt 0:06:19]} Rae8 {[%emt 0:14:04]} 18. a3 {[%emt 0:20:00]} Bc8 {[%emt 0:03:14]} 19. b4 {[%emt 0:02:10]} Ng7 {[%emt 0:08:38]} 20. Ng1 {[%emt 0:03:43]} ({White should play} 20. b5) 20... Bf5 {[%emt 0:07:03]} ({Black should try} 20... Qd8) 21. Ngf3 {[%emt 0:03:13]} Qd8 {[%emt 0:01:49][%cal Of5e4]} 22. Ng4 {[%emt 0:01:56]} Bxd3 {[%emt 0:03:01]} (22... Rxe1 $11 {is superior.} 23. Rxe1 Kh8) 23. Nh6+ {[%emt 0:07:00] A dynamic duo of knights.} ({Better is} 23. Rxe8 $14 Rxe8 24. Qxd3) 23... Kh8 $11 {[%emt 0:00:14]} 24. Qxd3 {[%emt 0:00:13]} (24. Rxe8 {simplifies} Nxe8 25. Qxd3 f5 26. Ng4) 24... f5 $1 {[%emt 0:05:28]} 25. Ng5 {[%emt 0:06:24] Repels Ne6} Qf6 {[%emt 0:07:28] Prevents Ngf7+.} (25... Qd7 $1 $15) 26. b5 {[%emt 0:08:14]} Ne6 {[%emt 0:07:16]} 27. Rxe6 $2 {[%emt 0:02:18]} (27. bxc6 $1 $11 Kg7 28. Nxf5+ gxf5 29. Nxe6+ Rxe6 30. cxb7) 27... Rxe6 $19 {[%emt 0:00:05]} 28. h4 {[%emt 0:00:36] [#]} Kg7 $1 {[%emt 0:02:57]} 29. h5 {[%emt 0:00:13] aiming for hxg6.} Kxh6 {[%emt 0:05:56]} 30. hxg6+ {[%emt 0:00:06]} Kxg6 {[%emt 0:00:03]} 31. Nxh7 {[%emt 0:00:33]} Qe7 {[%emt 0:04:24] Threatens to win with ...Rg8.} 32. Nxf8+ {[%emt 0:01:12]} Qxf8 {[%emt 0:00:04]} 33. bxc6 {[%emt 0:00:06]} bxc6 {[%emt 0:00:14][%cal Of8f7]} 34. Qd1 {[%emt 0:00:53]} Kf6 {[%emt 0:00:20][%cal Of8e8]} (34... Bxa3 $2 35. Qh5+ Kf6 36. Qg5+ Kf7 37. Qxf5+ Rf6 38. Rh7+ (38. Qd7+ Be7 $18) 38... Kg8 39. Qh5 $18) 35. Rh5 {[%emt 0:00:50]} Ke7 {[%emt 0:08:25][%cal Od6c7]} (35... Bxa3 $6 36. Qh1 Ke7 37. Rh7+ Kd6 38. Qa1 $11) 36. Rh7+ {[%emt 0:00:56]} Kd8 {[%emt 0:00:38] ...Re7 is the strong threat.} 37. Rxa7 {[%emt 0:00:34] [#]} Bb8 $1 {[%emt 0:00:21]} (37... Bxa3 $2 38. Ra8+ Kc7 39. Rxf8 Bxf8 40. Qh5 $18) 38. Rb7 {[%emt 0:00:50]} Kc8 {[%emt 0:00:15]} (38... Bc7 $19 39. Qa4 Qe7 40. Qa8+ Kd7) 39. Qb1 {[%emt 0:00:20]} Bc7 {[%emt 0:00:43]} 40. a4 {[%emt 0:01:14][%cal Oa4a5] [#]} Re4 {[%emt 0:01:29]} (40... Re8 $1 $17 {...Qe7 would now be deadly.} 41. Ra7 Kd7) 41. a5 $11 {[%emt 0:00:32]} Qa3 $2 {[%emt 0:00:37][%mdl 8192]} (41... Bxa5 42. Rb8+ Kd7 43. Qb7+ (43. Rxf8 Re8 44. Qb7+ Bc7 45. Rxe8 Kxe8 46. Qxc7 Kf8 47. g4 fxg4 48. f5 Kg8 49. f6 Kf8 50. Qg7+ Ke8 51. Qe7#) 43... Bc7 44. Rxf8 Re8 45. Rxe8 (45. Rxf5 Re7 46. Rf6 Re6 47. Rxe6 Kxe6 48. Qxc7 Kf6 49. g4 Kg6 50. Kf3 Kf6 51. g5+ Ke6 52. Kg4 c5 53. f5#) 45... Kxe8 46. Qxc7) (41... Rxd4 $2 42. a6 (42. Rxc7+ Kxc7 43. Qb6+ Kd6 $18) 42... Qd6 43. Qa1 $18 (43. Qxf5+ Qd7 $18)) (41... Kd7 $11 {and Black has nothing to worry.}) 42. Ra7 $18 {[%emt 0:00:19]} Kd7 {[%emt 0:00:05][%cal Od7d6]} 43. a6 $2 {[%emt 0:01:04]} (43. Qb7 $18 Qd6 44. Ra8) 43... Qa5 $11 {[%emt 0:00:31]} 44. Ra8 {[%emt 0:01:56][%mdl 1024] Hoping for Qb7. White has compensation.} Qe1 {[%emt 0:00:44]} (44... Rxd4 $2 45. Qxf5+ Kd6 46. Qf8+ Kd7 47. Qg7+ Kd6 48. Qxd4 $18) 45. Qb7 {[%emt 0:00:25] White wants to mate with Rc8.} (45. Qc2 $5 Qe2 $8 (45... Rxd4 $2 46. Qxf5+ Qe6 47. Qxe6+ Kxe6 48. a7 $18) 46. Qb1 $11) 45... Re7 $1 {[%emt 0:00:41] And now ...Qe4+ would win.} 46. Rh8 {[%emt 0:00:24] White threatens a7 and mate.} (46. a7 $5 Qe4+ $8 47. Kg1 Qe1+ 48. Kg2 Qe4+ 49. Kg1 Qe1+ 50. Kg2 $11) 46... Qe4+ {[%emt 0:00:18]} 47. Kh2 $2 {[%emt 0:00:43][%mdl 8192]} (47. Kf1 $11 Qd3+ (47... Qxd4 48. Rd8+ Kxd8 49. a7 $11) 48. Kg2 Qe4+ 49. Kf1 Qxd4 50. Rd8+ (50. Qc8+ $2 Kd6 $19) 50... Kxd8 51. a7 Re1+ 52. Kxe1 Qe4+ 53. Kf1 Qh1+ 54. Ke2 Qe4+ 55. Kf1 Qh1+ 56. Ke2 Qe4+ 57. Kf1) 47... Qxd4 $19 {[%emt 0:00:14]} 48. Qc8+ {[%emt 0:00:33]} Kd6 {[%emt 0:00:04]} 49. Kg2 {[%emt 0:00:30]} Qe4+ {[%emt 0:00:02]} 50. Kh2 {[%emt 0:00:24]} Qd4 $2 {[%emt 0:00:42]} (50... Qf3 $19 51. Rh6+ Kc5 52. Qxf5 Qxf2+ 53. Kh3 Re3) 51. Rh6+ $2 {[%emt 0:00:40][%mdl 8192]} (51. Kg2 $11 Kc5 52. Rh2 (52. a7 $2 Re2 $19) 52... Qe4+ 53. Kg1) 51... Kc5 {[%emt 0:00:05]} 52. Kg2 {[%emt 0:00:30] [#]} Re2 $1 {[%emt 0:00:58]} 53. Qf8+ {[%emt 0:00:30]} (53. Kh3 Qxf2) 53... Kb5 {[%emt 0:00:07] Black is clearly winning.} 54. Qxf5 {[%emt 0:00:30]} Qxf2+ {[%emt 0:00:20]} 55. Kh3 {[%emt 0:00:01]} Qh2+ {[%emt 0:00:46]} (55... Kxa6 56. Rxc6+ Bb6 57. Qxd5 $11) 56. Kg4 {[%emt 0:00:00]} Qxh6 {[%emt 0:00:08]} 57. Qd3+ {[%emt 0:00:01]} Kb6 {[%emt 0:00:08]} 58. Qxe2 {[%emt 0:00:08]} Qg6+ {[%emt 0:00:09]} 59. Kh3 {[%emt 0:00:36]} Qf5+ {[%emt 0:00:04]} 60. Kg2 {[%emt 0:01:14]} Bd6 {[%emt 0:00:50] Weighted Error Value: White=0.61/Black=0.33.  Loses game:     	White=2     	Black=1      Missed win:     	White=1     	---        Mistake:       	White=2     	Black=5      Inaccurate:     	White=3     	Black=1      OK:         	White=19    	Black=10     Best:        	White=4     	Black=6      Strong:       	---       	Black=4} 0-1